[Event "FRA-chT Top 12 2019"]
[Site "Brest"]
[Date "2019.05.24"]
[Round "7.5"]
[White "Cornette, Matthieu"]
[Black "Burri, Quentin"]
[Result "1/2-1/2"]
[ECO "A06"]
[WhiteElo "2553"]
[BlackElo "2425"]
[Annotator "RC"]
[PlyCount "93"]
[EventDate "2019.05.18"]
[EventType "team-tourn"]
[EventCountry "FRA"]
[SourceTitle "playchess.com"]
[Source "ChessBase"]
[SourceQuality "1"]
[TimeControl "40/5400+30:1800+30"]

1. Nf3 {[%emt 0:00:00]} d5 {[%emt 0:00:00]} 2. e3 {[%emt 0:00:18]} Nf6 {[%emt 0:00:00]} 3. c4 {[%emt 0:00:05]} c6 {[%emt 0:00:00]} 4. Nc3 {[%emt 0:00:23]} e6 {[%emt 0:00:07]} 5. b3 {[%emt 0:00:12]} Nbd7 {[%emt 0:00:32]} 6. Qc2 {[%emt 0:01:05]} Bd6 {[%emt 0:00:26]} 7. Bb2 {[%emt 0:00:10]} O-O {[%emt 0:01:00]} 8. Be2 {[%emt 0:00:16]} e5 {[%emt 0:11:14]} 9. cxd5 {[%emt 0:01:55]} cxd5 {[%emt 0:00:39]} 10. Nb5 {[%emt 0:02:04]} Bb8 {[%emt 0:01:18]} 11. Rc1 {[%emt 0:09:02]} e4 {[%emt 0:13:09]} 12. Nfd4 {[%emt 0:02:50]} Ne5 {[%emt 0:00:32]} 13. f4 {[%emt 0:11:55]} exf3 {[%emt 0:17:10]} 14. Nxf3 {[%emt 0:01:24]} Nxf3+ {[%emt 0:00:18]} 15. Bxf3 {[%emt 0:00:07]} Bd7 {[%emt 0:00:12]} 16. Nc7 {[%emt 0:03:17]} Bxc7 {[%emt 0:06:00]} 17. Qxc7 {[%emt 0:00:07]} Rc8 {[%emt 0:00:11]} 18. Qxb7 {[%emt 0:07:18]} Rxc1+ {[%emt 0:00:30]} 19. Bxc1 {[%emt 0:00:05]} Qc8 {[%emt 0:00:12]} 20. Qxc8 {[%emt 0:02:02]} Rxc8 {[%emt 0:00:04]} 21. Bb2 {[%emt 0:15:13]} Rc2 {[%emt 0:04:15]} 22. Bxf6 {[%emt 0:00:07]} Rc1+ {[%emt 0:04:05]} 23. Bd1 {[%emt 0:00:05]} Bg4 {[%emt 0:00:53]} 24. O-O {[%emt 0:00:11]} Rxd1 {[%emt 0:00:03]} 25. Rxd1 {[%emt 0:01:09]} Bxd1 {[%emt 0:00:04]} 26. Bd4 {[%emt 0:00:35]} a6 {[%emt 0:00:10]} 27. Kf2 {[%emt 0:00:05]} f6 {[%emt 0:13:54]} 28. d3 {[%emt 0:01:01]} Kf7 {[%emt 0:02:28]} 29. Ke1 {[%emt 0:00:18]} Bg4 {[%emt 0:00:04]} 30. Kd2 {[%emt 0:00:04]} Ke6 {[%emt 0:01:03]} 31. Kc3 {[%emt 0:01:30]} Kd6 {[%emt 0:01:06]} 32. Ba7 {[%emt 0:00:27]} g6 {[%emt 0:08:01]} 33. Kd4 {[%emt 0:02:05]} Be2 {[%emt 0:01:16]} 34. Bb8+ {[%emt 0:10:33]} Kc6 {[%emt 0:01:08]} 35. g3 {[%emt 0:14:00]} f5 {[%emt 0:02:07]} 36. h4 {[%emt 0:02:58]} Bf1 {[%emt 0:00:26]} 37. a4 {[%emt 0:02:39]} Be2 {[%emt 0:00:25]} 38. b4 {[%emt 0:00:06]} Bf1 {[%emt 0:00:21]} 39. Bf4 {[%emt 0:01:12]} Be2 {[%emt 0:00:07]} 40. Bh6 {[%emt 0:00:11]} Bf1 {[%emt 0:00:17]} 41. Bf8 {[%emt 0:35:09]} Be2 {[%emt 0:30:14]} 42. Be7 {[%emt 0:03:25]} Bf1 {[%emt 0:00:19]} 43. Kc3 {[%emt 0:00:18]} Be2 {[%emt 0:00:36]} 44. Kd2 {[%emt 0:00:36]} Bf3 {[%emt 0:02:01]} 45. Bf6 {[%emt 0:00:15]} Bg4 {[%emt 0:00:15]} 46. Be7 {[%emt 0:03:11]} Bf3 {[%emt 0:00:27]} 47. Kc3 1/2-1/2

[Event "FRA-chT Top 12 2019"]
[Site "Brest"]
[Date "2019.05.24"]
[Round "7.5"]
[White "Apicella, Manuel"]
[Black "Barseghyan, Harutyun"]
[Result "0-1"]
[ECO "C91"]
[WhiteElo "2502"]
[BlackElo "2470"]
[Annotator "RC"]
[PlyCount "104"]
[EventDate "2019.05.18"]
[EventType "team-tourn"]
[EventCountry "FRA"]
[SourceTitle "playchess.com"]
[Source "ChessBase"]
[SourceQuality "1"]
[TimeControl "40/5400+30:1800+30"]

1. e4 {[%emt 0:00:00]} e5 {[%emt 0:00:00]} 2. Nf3 {[%emt 0:00:00]} Nc6 {[%emt 0:00:00]} 3. Bb5 {[%emt 0:00:00]} a6 {[%emt 0:00:00]} 4. Ba4 {[%emt 0:00:00]} Nf6 {[%emt 0:00:02]} 5. O-O {[%emt 0:00:05]} Be7 {[%emt 0:00:04]} 6. Re1 {[%emt 0:00:08]} b5 {[%emt 0:00:05]} 7. Bb3 {[%emt 0:00:04]} d6 {[%emt 0:00:05]} 8. c3 {[%emt 0:00:16]} O-O {[%emt 0:00:08]} 9. d4 {[%emt 0:00:25]} Bg4 {[%emt 0:00:12]} 10. d5 {[%emt 0:00:19]} Na5 {[%emt 0:00:32]} 11. Bc2 {[%emt 0:00:07]} Qc8 {[%emt 0:00:09]} 12. h3 {[%emt 0:01:47]} Bd7 {[%emt 0:00:36]} 13. Nbd2 {[%emt 0:01:20]} c6 {[%emt 0:00:20]} 14. dxc6 {[%emt 0:06:09]} Qxc6 {[%emt 0:01:32]} 15. Nf1 {[%emt 0:00:18]} Rac8 {[%emt 0:00:46]} 16. a3 {[%emt 0:02:30]} Rfe8 {[%emt 0:04:34]} 17. Ng3 {[%emt 0:01:11]} Nc4 {[%emt 0:01:19]} 18. Rb1 {[%emt 0:02:57]} h6 {[%emt 0:10:10]} 19. Nh4 {[%emt 0:04:42]} d5 {[%emt 0:01:01]} 20. Nhf5 {[%emt 0:00:35]} Bxf5 {[%emt 0:00:43]} 21. Nxf5 {[%emt 0:00:22]} dxe4 {[%emt 0:02:04]} 22. Qe2 {[%emt 0:04:57]} Bc5 {[%emt 0:07:53]} 23. Be3 {[%emt 0:21:02]} Rcd8 {[%emt 0:04:22]} 24. Red1 {[%emt 0:05:14]} Rxd1+ {[%emt 0:01:02]} 25. Qxd1 {[%emt 0:02:16]} Qb6 {[%emt 0:20:21]} 26. Bxc5 {[%emt 0:06:26]} Qxc5 {[%emt 0:00:09]} 27. Qe2 {[%emt 0:00:21]} Rd8 {[%emt 0:00:34]} 28. Rd1 {[%emt 0:00:57]} Rxd1+ {[%emt 0:00:11]} 29. Bxd1 {[%emt 0:02:05]} g6 {[%emt 0:17:16]} 30. Nxh6+ {[%emt 0:07:13]} Kg7 {[%emt 0:00:09]} 31. Ng4 {[%emt 0:00:06]} Nxg4 {[%emt 0:00:34]} 32. hxg4 {[%emt 0:00:11]} e3 {[%emt 0:00:11]} 33. fxe3 {[%emt 0:05:50]} Nxe3 {[%emt 0:00:12]} 34. Kh1 {[%emt 0:02:56]} e4 {[%emt 0:01:49]} 35. g3 {[%emt 0:04:35]} Nxd1 {[%emt 0:03:24]} 36. Qxd1 {[%emt 0:00:15]} Qf2 {[%emt 0:00:34]} 37. Qg1 {[%emt 0:03:29]} Qd2 {[%emt 0:02:14]} 38. Qc5 {[%emt 0:02:47]} Qd1+ {[%emt 0:06:11]} 39. Kh2 {[%emt 0:01:32]} Qxg4 {[%emt 0:00:11]} 40. Qd4+ {[%emt 0:05:44]} Kh7 {[%emt 0:00:22]} 41. Qe3 {[%emt 0:30:12]} Qe6 {[%emt 0:31:14]} 42. Kg2 {[%emt 0:01:04]} Qa2 {[%emt 0:01:15]} 43. Qxe4 {[%emt 0:01:15]} Qxb2+ {[%emt 0:00:03]} 44. Kh3 {[%emt 0:00:06]} Qxc3 {[%emt 0:00:32]} 45. Qb7 {[%emt 0:00:50]} Qf6 {[%emt 0:00:04]} 46. g4 {[%emt 0:02:12]} Kg7 {[%emt 0:09:02]} 47. Qc7 {[%emt 0:03:26]} Qf3+ {[%emt 0:00:47]} 48. Kh4 {[%emt 0:00:03]} Qxa3 {[%emt 0:00:37]} 49. Qe5+ {[%emt 0:00:05]} Kg8 {[%emt 0:00:06]} 50. Kg5 {[%emt 0:00:38]} Qc1+ {[%emt 0:01:04]} 51. Kf6 {[%emt 0:00:05]} Qc6+ {[%emt 0:00:06]} 52. Ke7 {[%emt 0:00:20]} Qe6+ {[%emt 0:00:11]} 0-1

[Event "FRA-chT Top 12 2019"]
[Site "Brest"]
[Date "2019.05.24"]
[Round "7.7"]
[White "Koch, Jean-Rene"]
[Black "Ribbegren, Karl Johan"]
[Result "1-0"]
[ECO "B38"]
[WhiteElo "2465"]
[BlackElo "2209"]
[Annotator "RC"]
[PlyCount "57"]
[EventDate "2019.05.18"]
[EventType "team-tourn"]
[EventCountry "FRA"]
[SourceTitle "playchess.com"]
[Source "ChessBase"]
[SourceQuality "1"]
[TimeControl "40/5400+30:1800+30"]

1. c4 {[%emt 0:00:00]} c5 {[%emt 0:00:00]} 2. Nf3 {[%emt 0:00:21]} g6 {[%emt 0:00:50]} 3. e4 {[%emt 0:00:32]} Bg7 {[%emt 0:00:38]} 4. d4 {[%emt 0:00:08]} cxd4 {[%emt 0:00:56]} 5. Nxd4 {[%emt 0:00:06]} Nc6 {[%emt 0:00:39]} 6. Be3 {[%emt 0:00:09]} Nh6 {[%emt 0:04:56]} 7. Be2 {[%emt 0:01:49]} d6 {[%emt 0:07:22]} 8. Qd2 {[%emt 0:18:27]} Ng4 {[%emt 0:02:15]} 9. Bxg4 {[%emt 0:00:37]} Bxg4 {[%emt 0:00:06]} 10. Nc3 {[%emt 0:00:39]} Bd7 {[%emt 0:10:03]} 11. b3 {[%emt 0:02:33]} Qa5 {[%emt 0:01:37]} 12. Rd1 {[%emt 0:04:19]} O-O {[%emt 0:03:20]} 13. O-O {[%emt 0:03:36]} f5 {[%emt 0:04:14]} 14. exf5 {[%emt 0:02:33]} Bxf5 {[%emt 0:04:14]} 15. Nd5 {[%emt 0:11:16]} Qd8 {[%emt 0:07:37]} 16. Rfe1 {[%emt 0:11:25]} Rf7 {[%emt 0:14:48]} 17. Nxf5 {[%emt 0:04:41]} gxf5 {[%emt 0:05:13]} 18. Nf4 {[%emt 0:11:34]} Qc8 {[%emt 0:06:37]} 19. Nh5 {[%emt 0:01:21]} Ne5 {[%emt 0:06:59]} 20. Bd4 {[%emt 0:12:56]} Bh8 {[%emt 0:08:01]} 21. f4 {[%emt 0:03:00]} Ng6 {[%emt 0:01:35]} 22. Bxh8 {[%emt 0:00:06]} Kxh8 {[%emt 0:00:22]} 23. Qd5 {[%emt 0:00:42]} Kg8 {[%emt 0:00:32]} 24. Re6 {[%emt 0:02:07]} Qc6 {[%emt 0:01:22]} 25. Qd3 {[%emt 0:00:50]} Qc5+ {[%emt 0:01:05]} 26. Kh1 {[%emt 0:00:25]} Qf2 {[%emt 0:00:31]} 27. Rf1 {[%emt 0:03:57]} Qh4 {[%emt 0:00:15]} 28. Qf3 {[%emt 0:00:06]} Raf8 {[%emt 0:01:05]} 29. h3 {[%emt 0:00:36]} 1-0

[Event "FRA-chT Top 12 2019"]
[Site "Brest"]
[Date "2019.05.24"]
[Round "7.8"]
[White "Sebag, Marie"]
[Black "Gras, Delphine"]
[Result "*"]
[ECO "B12"]
[WhiteElo "2476"]
[BlackElo "1835"]
[Annotator "RC"]
[PlyCount "83"]
[EventDate "2019.05.18"]
[EventType "team-tourn"]
[EventCountry "FRA"]
[SourceTitle "playchess.com"]
[Source "ChessBase"]
[SourceQuality "1"]
[TimeControl "40/5400+30:1800+30"]

1. e4 c6 2. d4 d5 {[%emt 0:00:00]} 3. e5 {[%emt 0:00:00]} Bf5 {[%emt 0:00:00]} 4. Nf3 {[%emt 0:00:00]} e6 {[%emt 0:00:00]} 5. Be2 {[%emt 0:00:00]} Bb4+ {[%emt 0:00:00]} 6. c3 {[%emt 0:01:42]} Ba5 {[%emt 0:00:04]} 7. O-O {[%emt 0:00:26]} Nd7 {[%emt 0:00:04]} 8. Nbd2 {[%emt 0:01:34]} Bc7 {[%emt 0:00:28]} 9. Re1 {[%emt 0:00:53]} Ne7 {[%emt 0:00:11]} 10. Nf1 {[%emt 0:03:38]} O-O {[%emt 0:02:06]} 11. Ng3 {[%emt 0:00:42]} f6 {[%emt 0:02:24]} 12. exf6 {[%emt 0:18:10]} Nxf6 {[%emt 0:01:11]} 13. Nxf5 {[%emt 0:10:00]} Nxf5 {[%emt 0:00:18]} 14. Bd3 {[%emt 0:03:29]} Qd6 {[%emt 0:14:01]} 15. g3 {[%emt 0:03:51]} Rae8 {[%emt 0:04:42]} 16. Bf4 {[%emt 0:09:41]} Qd7 {[%emt 0:04:52]} 17. Ne5 {[%emt 0:00:41]} Qd8 {[%emt 0:01:34]} 18. Qc2 {[%emt 0:03:33]} Nd7 {[%emt 0:20:03]} 19. Nxd7 {[%emt 0:11:27]} Qxd7 {[%emt 0:00:16]} 20. Bxc7 {[%emt 0:00:48]} Qxc7 {[%emt 0:00:44]} 21. Re5 {[%emt 0:01:13]} g6 {[%emt 0:04:20]} 22. Rae1 {[%emt 0:00:30]} Qf7 {[%emt 0:03:50]} 23. f4 {[%emt 0:01:21]} b5 {[%emt 0:03:48]} 24. Bxf5 {[%emt 0:02:18]} exf5 {[%emt 0:00:31]} 25. Qe2 {[%emt 0:00:14]} Rxe5 {[%emt 0:01:05]} 26. Qxe5 {[%emt 0:00:05]} Qd7 {[%emt 0:06:08]} 27. Qe6+ {[%emt 0:10:21]} Rf7 {[%emt 0:01:43]} 28. Qxd7 {[%emt 0:00:38]} Rxd7 {[%emt 0:00:01]} 29. Re8+ {[%emt 0:00:10]} Kf7 {[%emt 0:03:41]} 30. Rc8 {[%emt 0:00:51]} a5 {[%emt 0:02:14]} 31. Rxc6 {[%emt 0:00:23]} b4 {[%emt 0:00:26]} 32. Ra6 {[%emt 0:09:08]} bxc3 {[%emt 0:04:15]} 33. bxc3 {[%emt 0:00:04]} Rc7 {[%emt 0:00:22]} 34. Rxa5 {[%emt 0:00:20]} Rxc3 {[%emt 0:00:09]} 35. Rxd5 {[%emt 0:00:07]} Rc1+ {[%emt 0:03:00]} 36. Kf2 {[%emt 0:00:50]} Rc2+ {[%emt 0:00:07]} 37. Ke3 {[%emt 0:00:05]} Rxa2 {[%emt 0:00:22]} 38. Rd7+ {[%emt 0:00:13]} Kg8 {[%emt 0:02:42]} 39. d5 {[%emt 0:03:11]} Rxh2 {[%emt 0:00:20]} 40. d6 {[%emt 0:00:46]} Rg2 {[%emt 0:09:52]} 41. Rc7 {[%emt 0:33:03]} Kf8 {[%emt 0:35:52]} 42. Rc8+ {[%emt 0:00:47] Rh2} *

[Event "FRA-chT Top 12 2019"]
[Site "Brest"]
[Date "2019.05.24"]
[Round "7.8"]
[White "Steil-Antoni, Fiona"]
[Black "Bolon, Karelle"]
[Result "1-0"]
[ECO "B22"]
[WhiteElo "2156"]
[BlackElo "2018"]
[Annotator "NA RC"]
[PlyCount "100"]
[EventDate "2019.05.18"]
[EventType "team-tourn"]
[EventCountry "FRA"]
[SourceTitle "playchess.com"]
[Source "ChessBase"]
[SourceQuality "1"]
[TimeControl "40/5400+30:1800+30"]

1. e4 {[%emt 0:00:00]} c5 {[%emt 0:00:00]} 2. c3 {[%emt 0:00:00]} e6 {[%emt 0:00:19]} 3. d4 {[%emt 0:01:26]} d5 {[%emt 0:00:16]} 4. exd5 {[%emt 0:00:51]} exd5 {[%emt 0:00:08]} 5. Nf3 {[%emt 0:00:58]} Nc6 {[%emt 0:00:17]} 6. Be3 {[%emt 0:02:20]} c4 {[%emt 0:00:48]} 7. b4 {[%emt 0:06:42]} Bd6 {[%emt 0:09:35]} 8. g3 {[%emt 0:03:33]} Nf6 {[%emt 0:01:08]} 9. Bg2 {[%emt 0:01:03]} O-O {[%emt 0:02:52]} 10. O-O {[%emt 0:01:44]} Bf5 {[%emt 0:02:28]} 11. Nbd2 {[%emt 0:04:28]} Ng4 {[%emt 0:15:12]} 12. Re1 {[%emt 0:04:10]} Re8 {[%emt 0:11:12]} 13. Nh4 {[%emt 0:03:26]} Be6 {[%emt 0:01:27]} 14. Nf1 {[%emt 0:10:31]} Ne7 {[%emt 0:01:10]} 15. h3 {[%emt 0:02:20]} Nf6 {[%emt 0:01:33]} 16. Qc2 {[%emt 0:06:11]} Qd7 {[%emt 0:03:39]} 17. Kh2 {[%emt 0:05:14]} Nf5 {[%emt 0:01:39]} 18. Nf3 {[%emt 0:02:22]} Qc7 {[%emt 0:07:46]} 19. Ne5 {[%emt 0:05:06]} Nd7 {[%emt 0:01:58]} 20. f4 {[%emt 0:02:22]} f6 {[%emt 0:01:14]} 21. Nxd7 {[%emt 0:00:59]} Qxd7 {[%emt 0:00:30]} 22. Bf2 {[%emt 0:01:09]} Bc7 {[%emt 0:06:02]} 23. Re2 {[%emt 0:06:23]} Bf7 {[%emt 0:02:26]} 24. Rae1 {[%emt 0:02:17]} Rxe2 {[%emt 0:00:54]} 25. Rxe2 {[%emt 0:00:03]} b5 {[%emt 0:04:15]} 26. Bf3 {[%emt 0:05:23]} h5 {[%emt 0:01:06]} 27. Kg2 {[%emt 0:01:41]} g6 {[%emt 0:02:29]} 28. g4 {[%emt 0:07:24]} hxg4 {[%emt 0:02:44]} 29. hxg4 {[%emt 0:00:02]} Nh6 {[%emt 0:02:24]} 30. Ne3 {[%emt 0:03:53]} Bxf4 {[%emt 0:00:59]} 31. Nxd5 {[%emt 0:01:56]} Bxd5 {[%emt 0:05:19]} 32. Qxg6+ {[%emt 0:00:03]} Kf8 {[%emt 0:00:14]} 33. Qxf6+ {[%emt 0:00:25]} Qf7 {[%emt 0:00:08]} 34. Qxf7+ {[%emt 0:01:22]} Bxf7 {[%emt 0:02:18]} 35. Bxa8 {[%emt 0:00:18]} Nxg4 {[%emt 0:00:06]} 36. Re4 {[%emt 0:07:13]} Nxf2 {[%emt 0:01:16]} 37. Rxf4 {[%emt 0:00:04]} Nd3 {[%emt 0:00:07]} 38. Rf6 {[%emt 0:01:24]} Ke7 {[%emt 0:00:23]} 39. Ra6 {[%emt 0:00:30]} Nf4+ {[%emt 0:02:39]} 40. Kf3 {[%emt 0:00:27]} Ne6 {[%emt 0:00:47]} 41. Rxa7+ {[%emt 0:30:46]} Kd6 {[%emt 0:30:52]} 42. Ke3 {[%emt 0:00:00]} Nc7 {[%emt 0:00:00]} 43. Be4 {[%emt 0:00:00]} Be8 {[%emt 0:00:00]} 44. Rb7 {[%emt 0:00:00]} Bd7 {[%emt 0:00:00]} 45. Rb6+ {[%emt 0:00:00]} Ke7 {[%emt 0:00:00]} 46. Kf4 {[%emt 0:00:00]} Ne8 {[%emt 0:00:00]} 47. Bf5 {[%emt 0:00:00]} Bxf5 {[%emt 0:00:00]} 48. Kxf5 {[%emt 0:00:00]} Nc7 {[%emt 0:00:00]} 49. Rb7 {[%emt 0:00:00]} Kd6 {[%emt 0:00:00]} 50. Rxc7 {[%emt 0:00:00]} Kd5 {Ke4+} 1-0

[Event "FRA-chT Top 12 2019"]
[Site "Brest"]
[Date "2019.05.24"]
[Round "7.8"]
[White "Haussernot, Cecile"]
[Black "Skripchenko, Almira"]
[Result "1/2-1/2"]
[ECO "B00"]
[WhiteElo "2097"]
[BlackElo "2406"]
[Annotator "RC"]
[PlyCount "33"]
[EventDate "2019.05.18"]
[EventType "team-tourn"]
[EventCountry "FRA"]
[SourceTitle "playchess.com"]
[Source "ChessBase"]
[SourceQuality "1"]
[TimeControl "40/5400+30:1800+30"]

1. e4 {[%emt 0:00:00]} Nc6 {[%emt 0:00:00]} 2. Nf3 {[%emt 0:01:22]} d6 {[%emt 0:00:00]} 3. h3 {[%emt 0:16:03]} Nf6 {[%emt 0:04:06]} 4. Nc3 {[%emt 0:03:51]} g6 {[%emt 0:00:07]} 5. d4 {[%emt 0:02:11]} Bg7 {[%emt 0:00:06]} 6. Be3 {[%emt 0:00:17]} O-O {[%emt 0:00:34]} 7. Qd2 {[%emt 0:03:04]} e5 {[%emt 0:01:53]} 8. O-O-O {[%emt 0:06:31]} exd4 {[%emt 0:08:39]} 9. Nxd4 {[%emt 0:00:12]} Re8 {[%emt 0:00:11]} 10. f3 {[%emt 0:14:14]} Nxd4 {[%emt 0:30:44]} 11. Bxd4 {[%emt 0:00:11]} a6 {[%emt 0:00:20]} 12. g4 {[%emt 0:08:12]} b5 {[%emt 0:05:22]} 13. g5 {[%emt 0:12:27]} Nh5 {[%emt 0:00:21]} 14. Bxg7 {[%emt 0:00:37]} Kxg7 {[%emt 0:00:06]} 15. Rg1 {[%emt 0:08:41]} Bb7 {[%emt 0:03:02]} 16. Be2 b4 17. Qd4+ 1/2-1/2

[Event "FRA-chT Top 12 2019"]
[Site "Brest"]
[Date "2019.05.24"]
[Round "7.8"]
[White "Fruteau, Sabine"]
[Black "Mouhamad, Joachin"]
[Result "0-1"]
[ECO "B45"]
[WhiteElo "2015"]
[BlackElo "2332"]
[Annotator "NA RC"]
[PlyCount "68"]
[EventDate "2019.05.18"]
[EventType "team-tourn"]
[EventCountry "FRA"]
[SourceTitle "playchess.com"]
[Source "ChessBase"]
[SourceQuality "1"]
[TimeControl "40/5400+30:1800+30"]

1. e4 {[%emt 0:00:00]} c5 {[%emt 0:00:00]} 2. Nf3 {[%emt 0:00:00]} e6 {[%emt 0:00:00]} 3. d4 {[%emt 0:00:18]} cxd4 {[%emt 0:00:00]} 4. Nxd4 {[%emt 0:00:08]} Nc6 {[%emt 0:00:28]} 5. Nc3 {[%emt 0:05:11]} d6 {[%emt 0:00:34]} 6. Nb3 {[%emt 0:05:53] B54: Sicilian: 2...d6 3 d4 cxd4 4 Nxd4, Unusual Lines} (6. Be3 Nf6 7. f3 Be7 8. Qd2 O-O 9. O-O-O d5 10. Be2 dxe4 11. Nxc6 bxc6 12. Qxd8 Bxd8 13. Nxe4 Nxe4 14. fxe4 Bb6 15. Bxb6 axb6 16. a3 Ba6 17. Bxa6 Rxa6 18. Rd6 {1-0 (78) Saric,I (2689)-Korobov,A (2685) Biograd 2018}) 6... a6 {[%emt 0:01:17]} 7. a4 {[%emt 0:03:16]} Nf6 {[%emt 0:02:56]} 8. Bd3 {[%emt 0:00:06]} Be7 {[%emt 0:01:03]} 9. O-O {[%emt 0:00:14]} O-O {[%emt 0:00:08]} 10. Bg5 {[%emt 0:07:40]} b6 {[%emt 0:10:10]} 11. f4 {[%emt 0:03:10]} Bb7 $146 {[%emt 0:01:18]} ({Predecessor:} 11... Nd7 12. Bxe7 Qxe7 13. f5 Nde5 14. f6 gxf6 15. Qh5 Kh8 {0-1 (30) Rosa,L (1807)-Carneiro,V (2084) Americana 2012}) 12. Qe1 {[%emt 0:05:07]} Nd7 {[%emt 0:05:12]} 13. Bxe7 {[%emt 0:01:41]} Qxe7 {[%emt 0:01:52]} 14. Rd1 {[%emt 0:00:06]} Rac8 {[%emt 0:01:35]} 15. Ne2 {[%emt 0:07:14]} Rfd8 {[%emt 0:02:34]} 16. c3 {[%emt 0:01:31]} Na5 {[%emt 0:24:19]} 17. Nd2 {[%emt 0:13:56]} g6 {[%emt 0:15:21]} 18. b4 {[%emt 0:04:24]} Nc6 {[%emt 0:00:24]} 19. Qf2 {[%emt 0:01:24]} a5 {[%emt 0:05:02]} 20. Rb1 {[%emt 0:10:38]} axb4 {[%emt 0:01:29]} 21. cxb4 {[%emt 0:00:06]} d5 {[%emt 0:00:49]} 22. exd5 {[%emt 0:10:16]} Nxb4 $19 {[%emt 0:00:36] Double Attack} 23. Bb5 {[%emt 0:01:02]} Nxd5 {[%emt 0:01:02]} 24. Nc4 {[%emt 0:02:00]} Nc5 {[%emt 0:02:34]} 25. Ne5 {[%emt 0:04:27]} Ne4 {[%emt 0:00:58]} 26. Qd4 {[%emt 0:00:09]} Ndc3 {[%emt 0:10:24]} 27. Qxb6 {[%emt 0:00:57]} Nxb1 {[%emt 0:00:21]} 28. Rxb1 {[%emt 0:01:21]} Qb4 {[%emt 0:04:01]} 29. Rf1 {[%emt 0:00:42]} Qc5+ {[%emt 0:00:50]} 30. Qxc5 {[%emt 0:00:11]} Rxc5 {[%emt 0:00:35]} 31. Nf3 {[%emt 0:07:01]} Nd2 {[%emt 0:00:46]} 32. Nxd2 {[%emt 0:00:56]} Rxd2 {[%emt 0:00:04]} 33. Rb1 {[%emt 0:00:50]} Be4 {[%emt 0:00:48]} 34. Rb3 {[%emt 0:00:31]} Rxb5 {[%emt 0:01:41]} 0-1

[Event "FRA-chT Top 12 2019"]
[Site "Brest"]
[Date "2019.05.25"]
[Round "8.1"]
[White "Safarli, Eltaj"]
[Black "Velten, Paul"]
[Result "1-0"]
[ECO "C67"]
[WhiteElo "2624"]
[BlackElo "2507"]
[Annotator "ChessBase"]
[PlyCount "107"]
[EventDate "2019.05.18"]
[EventType "team-tourn"]
[EventCountry "FRA"]
[SourceTitle "playchess.com"]
[Source "ChessBase"]
[SourceQuality "1"]
[TimeControl "40/5400+30:1800+30"]

1. e4 {[%emt 0:00:15]} e5 {[%emt 0:00:03]} 2. Nf3 {[%emt 0:00:14]} Nc6 {[%emt 0:00:23]} 3. Bb5 {[%emt 0:00:04]} Nf6 {[%emt 0:01:19]} 4. O-O {[%emt 0:01:23]} Nxe4 {[%emt 0:06:54]} 5. d4 {[%emt 0:00:11]} Nd6 {[%emt 0:01:05]} 6. dxe5 {[%emt 0:00:30]} Nxb5 {[%emt 0:00:42]} 7. a4 {[%emt 0:00:05]} d6 {[%emt 0:00:39]} 8. e6 {[%emt 0:00:19]} fxe6 {[%emt 0:05:22]} 9. axb5 {[%emt 0:01:42]} Ne7 {[%emt 0:00:41]} 10. Nc3 {[%emt 0:04:39]} Ng6 {[%emt 0:03:26]} 11. Qd4 {[%emt 0:07:26]} a6 {[%emt 0:13:13]} 12. Bg5 {[%emt 0:03:47]} Be7 {[%emt 0:02:38]} 13. Bxe7 {[%emt 0:20:02]} Qxe7 {[%emt 0:01:05]} 14. Rfe1 {[%emt 0:00:20]} O-O {[%emt 0:02:07]} 15. b6 {[%emt 0:02:25]} c5 {[%emt 0:14:36]} 16. Qd2 {[%emt 0:06:01]} Qd8 {[%emt 0:21:45]} 17. Nb5 {[%emt 0:08:48]} Qxb6 {[%emt 0:01:01]} 18. Nxd6 {[%emt 0:00:05]} Qxb2 {[%emt 0:02:07]} 19. Ne4 {[%emt 0:14:33]} Qb6 {[%emt 0:01:19]} 20. Rad1 {[%emt 0:04:03]} Qc7 {[%emt 0:05:19]} 21. Qe3 {[%emt 0:04:22]} b6 {[%emt 0:01:04]} 22. Nd6 {[%emt 0:02:52]} Rd8 {[%emt 0:09:14]} 23. Qe4 {[%emt 0:05:24]} Rb8 {[%emt 0:00:21]} 24. Nxc8 {[%emt 0:05:55]} Rxd1 {[%emt 0:00:08]} 25. Rxd1 {[%emt 0:04:37]} Qxc8 {[%emt 0:00:06]} 26. h4 {[%emt 0:00:16]} Nf8 {[%emt 0:00:21]} 27. h5 {[%emt 0:00:46]} Qc7 {[%emt 0:00:14]} 28. h6 {[%emt 0:01:12]} gxh6 {[%emt 0:00:43]} 29. Ne5 {[%emt 0:00:13]} Re8 {[%emt 0:04:24]} 30. Rd3 {[%emt 0:00:04]} Re7 {[%emt 0:00:07]} 31. Rf3 {[%emt 0:00:58]} Rg7 {[%emt 0:00:50]} 32. Ng4 {[%emt 0:00:43]} Rg6 {[%emt 0:00:17]} 33. Nf6+ {[%emt 0:00:56]} Kh8 {[%emt 0:01:09]} 34. Ne8 {[%emt 0:00:57]} Qe7 {[%emt 0:00:18]} 35. Qe5+ {[%emt 0:00:24]} Kg8 {[%emt 0:00:05]} 36. Nf6+ {[%emt 0:00:12]} Rxf6 {[%emt 0:00:11]} 37. Rxf6 {[%emt 0:00:03]} Qg7 {[%emt 0:01:37]} 38. Qf4 {[%emt 0:00:16]} b5 {[%emt 0:00:46]} 39. Rxh6 {[%emt 0:01:47]} Ng6 {[%emt 0:00:46]} 40. Qe3 {[%emt 0:00:12]} Qe7 {[%emt 0:00:57]} 41. Rh5 {[%emt 0:30:56]} e5 {[%emt 0:30:30]} 42. Qe4 {[%emt 0:00:00]} Qa7 {[%emt 0:00:00]} 43. Rh3 {[%emt 0:00:00]} c4 {[%emt 0:00:00]} 44. Qc6 {[%emt 0:00:00]} Kg7 {[%emt 0:00:00]} 45. Rf3 {[%emt 0:00:00]} Nf4 {[%emt 0:00:00]} 46. g3 {[%emt 0:00:00]} Ng6 {[%emt 0:00:00]} 47. Rf6 {[%emt 0:00:00]} Qe7 {[%emt 0:00:00]} 48. Rd6 {[%emt 0:00:00]} Kh6 {[%emt 0:00:00]} 49. Rd7 {[%emt 0:00:00]} Qa3 {[%emt 0:00:00]} 50. Qh1+ {[%emt 0:00:17]} Kg5 {[%emt 0:00:00]} 51. Qe4 {[%emt 0:00:16]} Kh6 {[%emt 0:00:00]} 52. Kg2 {[%emt 0:01:54]} a5 {[%emt 0:00:00]} 53. Qf5 {[%emt 0:01:38]} Qc3 {[%emt 0:00:00]} 54. Rf7 {[%emt 0:00:54]} 1-0

[Event "FRA-chT Top 12 2019"]
[Site "Brest"]
[Date "2019.05.25"]
[Round "8.1"]
[White "Solodovnichenko, Yuri"]
[Black "Gukesh D"]
[Result "0-1"]
[ECO "B24"]
[WhiteElo "2572"]
[BlackElo "2533"]
[Annotator "ChessBase"]
[PlyCount "48"]
[EventDate "2019.05.18"]
[EventType "team-tourn"]
[EventCountry "FRA"]
[SourceTitle "playchess.com"]
[Source "ChessBase"]
[SourceQuality "1"]
[TimeControl "40/5400+30:1800+30"]

1. e4 {[%emt 0:00:00]} c5 {[%emt 0:00:00]} 2. Nc3 {[%emt 0:00:16]} Nc6 {[%emt 0:00:00]} 3. Nf3 {[%emt 0:00:18]} e5 {[%emt 0:00:30]} 4. Bc4 {[%emt 0:00:46]} Be7 {[%emt 0:00:14]} 5. d3 {[%emt 0:01:00]} d6 {[%emt 0:00:24]} 6. O-O {[%emt 0:00:21]} Nf6 {[%emt 0:02:42]} 7. Ng5 {[%emt 0:00:56]} O-O {[%emt 0:01:06]} 8. f4 {[%emt 0:00:09]} exf4 {[%emt 0:15:13]} 9. Bxf4 {[%emt 0:00:30]} h6 {[%emt 0:01:27]} 10. Nf3 {[%emt 0:01:25]} Be6 {[%emt 0:06:57]} 11. Nd5 {[%emt 0:02:03]} Bxd5 {[%emt 0:11:06]} 12. exd5 {[%emt 0:00:29]} Na5 {[%emt 0:01:07]} 13. Qd2 {[%emt 0:18:39]} Nxc4 {[%emt 0:03:09]} 14. dxc4 {[%emt 0:00:05]} Qd7 {[%emt 0:02:08]} 15. Qd3 {[%emt 0:02:24]} Rae8 {[%emt 0:07:14]} 16. h3 {[%emt 0:08:57]} Bd8 {[%emt 0:06:28]} 17. Nd2 {[%emt 0:05:15]} Nh5 {[%emt 0:02:49]} 18. Bh2 {[%emt 0:01:48]} f5 {[%emt 0:04:43]} 19. Rae1 {[%emt 0:04:21]} Bg5 {[%emt 0:07:16]} 20. Nb3 {[%emt 0:14:59]} Rxe1 {[%emt 0:06:54]} 21. Rxe1 {[%emt 0:00:10]} Re8 {[%emt 0:01:07]} 22. Rxe8+ {[%emt 0:12:28]} Qxe8 {[%emt 0:00:01]} 23. Bxd6 {[%emt 0:01:16]} Qe1+ {[%emt 0:00:32]} 24. Kh2 {[%emt 0:00:03]} Be3 {[%emt 0:00:09]} 0-1